[Event "WSTCC-65 2024"]
[Site "Krakow"]
[Date "2024.07.04"]
[Round "3.7"]
[White "Kusina, Jan"]
[Black "Dekan, Hans"]
[Result "1-0"]
[ECO "D02"]
[WhiteElo "1969"]
[BlackElo "2083"]
[Annotator "RC"]
[PlyCount "119"]
[EventDate "2024.07.01"]
[EventType "team-tourn"]
[EventCountry "POL"]
[SourceTitle "playchess.com"]
[Source "ChessBase"]
[SourceQuality "1"]
[TimeControl "40/5400+30:1800+30"]

1. d4 {[%emt 0:00:03]} d5 {[%emt 0:00:14]} 2. Nf3 {[%emt 0:00:18]} Bf5 {[%emt 0:00:59]} 3. Bf4 {[%emt 0:00:21]} c6 {[%emt 0:00:29]} 4. e3 {[%emt 0:00:17]} e6 {[%emt 0:00:12]} 5. Bd3 {[%emt 0:00:33]} Bg4 {[%emt 0:00:20]} 6. Nbd2 {[%emt 0:01:06]} Bd6 {[%emt 0:00:32]} 7. Bg3 {[%emt 0:01:34]} Nf6 {[%emt 0:01:41]} 8. c3 {[%emt 0:00:39]} Bxg3 {[%emt 0:01:35]} 9. hxg3 {[%emt 0:00:24]} Nbd7 {[%emt 0:00:12]} 10. Qc2 {[%emt 0:00:39]} Bxf3 {[%emt 0:09:15]} 11. gxf3 {[%emt 0:02:35]} c5 {[%emt 0:17:37]} 12. dxc5 {[%emt 0:02:54]} Nxc5 {[%emt 0:00:33]} 13. Bb5+ {[%emt 0:00:42]} Ncd7 {[%emt 0:00:30]} 14. g4 {[%emt 0:03:11]} g6 {[%emt 0:06:51]} 15. g5 {[%emt 0:09:56]} Nh5 {[%emt 0:01:58]} 16. Qa4 {[%emt 0:04:46]} a6 {[%emt 0:02:42]} 17. Qd4 {[%emt 0:09:33]} Rg8 {[%emt 0:06:00]} 18. Ba4 {[%emt 0:09:08]} b5 {[%emt 0:04:46]} 19. Bc2 {[%emt 0:01:13]} Qxg5 {[%emt 0:01:00]} 20. O-O-O {[%emt 0:00:20]} Qe5 {[%emt 0:08:59]} 21. Qb4 {[%emt 0:02:30]} Nhf6 {[%emt 0:03:14]} 22. Rh6 {[%emt 0:04:58]} Qc7 {[%emt 0:04:48]} 23. Nb3 {[%emt 0:08:54]} Qb6 {[%emt 0:06:56]} 24. Bd3 {[%emt 0:04:02]} Nb8 {[%emt 0:10:10]} 25. Kb1 {[%emt 0:07:54]} Nc6 {[%emt 0:04:10]} 26. Qh4 {[%emt 0:01:40]} Qd8 {[%emt 0:01:22]} 27. Rg1 {[%emt 0:05:17]} Qe7 {[%emt 0:01:06]} 28. e4 {[%emt 0:04:13]} O-O-O {[%emt 0:03:01]} 29. exd5 {[%emt 0:07:53]} Rxd5 {[%emt 0:00:55]} 30. Be4 {[%emt 0:00:22]} Nxe4 {[%emt 0:00:55]} 31. fxe4 {[%emt 0:01:56]} Qxh4 {[%emt 0:00:40]} 32. Rxh4 {[%emt 0:00:02]} Rd7 {[%emt 0:00:54]} 33. Rxh7 {[%emt 0:00:10]} Rgd8 {[%emt 0:00:49]} 34. Nc5 {[%emt 0:01:03]} Ra7 {[%emt 0:00:56]} 35. Kc2 {[%emt 0:00:26]} Rf8 {[%emt 0:00:24]} 36. Rg3 {[%emt 0:00:37]} Nd8 {[%emt 0:00:23]} 37. f4 {[%emt 0:01:37]} a5 {[%emt 0:00:23]} 38. e5 {[%emt 0:00:33]} Rc7 {[%emt 0:00:32]} 39. Ne4 {[%emt 0:00:15]} Nb7 {[%emt 0:00:18]} 40. Rd3 {[%emt 0:00:47]} Rd7 {[%emt 0:00:57]} 41. Ng5 {[%emt 0:30:42]} Rxd3 {[%emt 0:30:32]} 42. Kxd3 {[%emt 0:00:03]} Nd8 {[%emt 0:00:51]} 43. Kd4 {[%emt 0:00:34]} b4 {[%emt 0:00:00]} 44. cxb4 {[%emt 0:00:00]} axb4 {[%emt 0:00:00]} 45. Ne4 {[%emt 0:00:00]} Nc6+ {[%emt 0:00:00]} 46. Kc5 {[%emt 0:00:00]} Ne7 {[%emt 0:00:00]} 47. Nf6 {[%emt 0:00:00]} Kc7 {[%emt 0:00:00]} 48. Kxb4 {[%emt 0:00:00]} Kc6 {[%emt 0:00:00]} 49. Kc4 {[%emt 0:00:00]} Nd5 {[%emt 0:00:00]} 50. Nxd5 {[%emt 0:00:00]} exd5+ {[%emt 0:00:00]} 51. Kc3 {[%emt 0:00:00]} Kd7 {[%emt 0:00:00]} 52. b4 {[%emt 0:00:00]} Ke6 {[%emt 0:00:00]} 53. b5 {[%emt 0:00:00]} Rc8+ {[%emt 0:00:00]} 54. Kb3 {[%emt 0:00:00]} d4 {[%emt 0:00:00]} 55. Rh3 {[%emt 0:00:00]} Kd5 {[%emt 0:00:00]} 56. a4 {[%emt 0:00:00]} Rc1 {[%emt 0:00:00]} 57. Kb2 {[%emt 0:00:00]} Rc4 {[%emt 0:00:00]} 58. b6 {[%emt 0:03:22]} Rb4+ {[%emt 0:00:00]} 59. Rb3 {[%emt 0:00:01]} d3 {[%emt 0:00:58]} 60. Rxb4 1-0

[Event "WSTCC-65 2024"]
[Site "Krakow"]
[Date "2024.07.04"]
[Round "3.8"]
[White "Lederman, Leon"]
[Black "Ceschia, Ivano"]
[Result "0-1"]
[ECO "B32"]
[WhiteElo "2198"]
[BlackElo "2180"]
[Annotator "RC"]
[PlyCount "136"]
[EventDate "2024.07.01"]
[EventType "team-tourn"]
[EventCountry "POL"]
[SourceTitle "playchess.com"]
[Source "ChessBase"]
[SourceQuality "1"]
[TimeControl "40/5400+30:1800+30"]

1. e4 {[%emt 0:00:03]} c5 {[%emt 0:00:08]} 2. Nf3 {[%emt 0:00:07]} Nc6 {[%emt 0:00:06]} 3. d4 {[%emt 0:00:04]} cxd4 {[%emt 0:00:06]} 4. Nxd4 {[%emt 0:00:02]} Qb6 {[%emt 0:00:08]} 5. Nb3 {[%emt 0:00:07]} Nf6 {[%emt 0:00:09]} 6. Nc3 {[%emt 0:00:09]} e6 {[%emt 0:00:08]} 7. a3 {[%emt 0:00:18]} Be7 {[%emt 0:03:34]} 8. Be2 {[%emt 0:01:44]} O-O {[%emt 0:01:18]} 9. O-O {[%emt 0:00:06]} d6 {[%emt 0:12:43]} 10. Be3 {[%emt 0:01:10]} Qc7 {[%emt 0:00:09]} 11. f4 {[%emt 0:00:05]} a6 {[%emt 0:00:34]} 12. g4 {[%emt 0:02:30]} Nd7 {[%emt 0:26:57]} 13. g5 {[%emt 0:05:33]} b5 {[%emt 0:07:39]} 14. Bd3 {[%emt 0:02:54]} b4 {[%emt 0:04:09]} 15. axb4 {[%emt 0:00:13]} Nxb4 {[%emt 0:00:07]} 16. f5 {[%emt 0:04:03]} exf5 {[%emt 0:18:02]} 17. exf5 {[%emt 0:02:00]} Nxd3 {[%emt 0:00:38]} 18. cxd3 {[%emt 0:18:48]} Re8 {[%emt 0:06:22]} 19. f6 {[%emt 0:09:13]} Bf8 {[%emt 0:04:32]} 20. fxg7 {[%emt 0:13:33]} Bxg7 {[%emt 0:00:24]} 21. Qh5 {[%emt 0:02:20]} Bb7 {[%emt 0:05:52]} 22. Qxf7+ {[%emt 0:02:37]} Kh8 {[%emt 0:00:04]} 23. Bd4 {[%emt 0:02:50]} Bxd4+ {[%emt 0:00:25]} 24. Nxd4 {[%emt 0:00:20]} Qc5 {[%emt 0:00:34]} 25. Qf4 {[%emt 0:00:19]} Rg8 {[%emt 0:01:51]} 26. h4 {[%emt 0:00:24]} h6 {[%emt 0:00:51]} 27. Rf2 {[%emt 0:12:29]} hxg5 {[%emt 0:00:20]} 28. hxg5 {[%emt 0:00:05]} Rxg5+ {[%emt 0:00:40]} 29. Kf1 {[%emt 0:00:12]} Rf8 {[%emt 0:01:17]} 30. Qh4+ {[%emt 0:03:43]} Kg8 {[%emt 0:00:35]} 31. Rxf8+ {[%emt 0:03:39]} Nxf8 {[%emt 0:00:04]} 32. Ne4 {[%emt 0:00:18]} Bxe4 {[%emt 0:00:42]} 33. Qxe4 {[%emt 0:00:06]} Qc8 {[%emt 0:01:10]} 34. Nf3 {[%emt 0:04:12]} Qh3+ {[%emt 0:00:41]} 35. Kf2 {[%emt 0:00:48]} Rg2+ {[%emt 0:00:18]} 36. Ke3 {[%emt 0:00:12]} Qh6+ {[%emt 0:00:05]} 37. Kd4 {[%emt 0:00:49]} Ne6+ {[%emt 0:00:48]} 38. Kc4 {[%emt 0:01:48]} Rc2+ {[%emt 0:03:50]} 39. Kb4 {[%emt 0:01:02]} Rxb2+ {[%emt 0:00:11]} 40. Kc3 {[%emt 0:01:47]} Qf6+ {[%emt 0:01:32]} 41. d4 {[%emt 0:31:10]} Rf2 {[%emt 0:11:54]} 42. Rg1+ {[%emt 0:00:00]} Kf8 {[%emt 0:00:38]} 43. Rg3 {[%emt 0:00:00]} Qf4 {[%emt 0:02:28]} 44. Qxf4+ {[%emt 0:00:00]} Nxf4 {[%emt 0:00:09]} 45. Ng1 {[%emt 0:00:00]} Ke7 {[%emt 0:02:23]} 46. Rf3 {[%emt 0:00:00]} Nd5+ {[%emt 0:01:36]} 47. Kc4 {[%emt 0:00:00]} Nb6+ {[%emt 0:00:11]} 48. Kb4 {[%emt 0:00:00]} Ra2 {[%emt 0:02:41]} 49. Ra3 {[%emt 0:00:00]} Nd5+ {[%emt 0:02:02]} 50. Kb3 {[%emt 0:00:00]} Rg2 {[%emt 0:03:05]} 51. Nf3 {[%emt 0:00:00]} Rg3 {[%emt 0:00:14]} 52. Kb2 {[%emt 0:00:00]} Nc7 {[%emt 0:00:12]} 53. Re3+ {[%emt 0:00:00]} Kd8 {[%emt 0:00:20]} 54. Rb3 {[%emt 0:00:00]} Nb5 {[%emt 0:00:11]} 55. Kc1 {[%emt 0:01:04]} Kc7 {[%emt 0:00:21]} 56. Kd2 {[%emt 0:00:45]} Kb6 {[%emt 0:00:14]} 57. Ke3 {[%emt 0:00:57]} a5 {[%emt 0:01:11]} 58. Kf4 {[%emt 0:01:31]} Rh3 {[%emt 0:00:24]} 59. Kg4 {[%emt 0:01:58]} Rh1 {[%emt 0:00:12]} 60. Nd2 {[%emt 0:00:42]} d5 {[%emt 0:01:36]} 61. Kf4 {[%emt 0:03:14]} a4 {[%emt 0:00:18]} 62. Rb2 {[%emt 0:00:28]} Ka5 {[%emt 0:01:53]} 63. Ke5 {[%emt 0:02:56]} Rh5+ {[%emt 0:00:13]} 64. Ke6 {[%emt 0:00:06]} Nxd4+ {[%emt 0:00:13]} 65. Kd6 {[%emt 0:00:05]} a3 {[%emt 0:00:42]} 66. Rb8 {[%emt 0:00:59]} Rh2 {[%emt 0:04:27]} 67. Nb1 {[%emt 0:01:53]} Nb5+ {[%emt 0:02:44]} 68. Kxd5 {[%emt 0:03:07]} a2 {[%emt 0:00:24]} 0-1

[Event "WSTCC-65 2024"]
[Site "Krakow"]
[Date "2024.07.04"]
[Round "3.8"]
[White "Staub, Gerhard"]
[Black "Turecki, Stanislaw"]
[Result "0-1"]
[ECO "B23"]
[WhiteElo "2089"]
[BlackElo "1873"]
[Annotator "NA RC"]
[PlyCount "54"]
[EventDate "2024.07.01"]
[EventType "team-tourn"]
[EventCountry "POL"]
[SourceTitle "playchess.com"]
[Source "ChessBase"]
[SourceQuality "1"]
[TimeControl "40/5400+30:1800+30"]

1. e4 {[%emt 0:00:05]} c5 {[%emt 0:00:16]} 2. Nc3 {[%emt 0:00:06]} d6 {[%emt 0:01:34]} 3. f4 {[%emt 0:00:17]} Nc6 {[%emt 0:02:51]} 4. Nf3 {[%emt 0:00:34]} g6 {[%emt 0:02:16]} 5. Bc4 {[%emt 0:00:20]} Bg7 {[%emt 0:01:23]} 6. O-O {[%emt 0:00:45]} e6 {[%emt 0:02:50]} 7. d3 {[%emt 0:00:26]} Nge7 {[%emt 0:00:37]} 8. Qe1 {[%emt 0:02:55]} a6 {[%emt 0:01:37]} 9. f5 {[%emt 0:04:36]} gxf5 {[%emt 0:08:14]} 10. a4 {[%emt 0:15:03]} fxe4 {[%emt 0:08:09]} 11. Ng5 {[%emt 0:04:34]} O-O {[%emt 0:08:08]} 12. Ncxe4 {[%emt 0:31:35]} Nf5 {[%emt 0:12:24]} 13. g4 {[%emt 0:09:31]} d5 {[%emt 0:03:38]} 14. gxf5 {[%emt 0:01:52]} exf5 {[%emt 0:01:48]} 15. Ng3 {[%emt 0:07:03]} h6 {[%emt 0:04:23]} 16. Nxf7 {[%emt 0:04:20]} Rxf7 {[%emt 0:00:06]} 17. Ba2 {[%emt 0:00:19]} Nb4 {[%emt 0:00:34]} 18. Bb3 {[%emt 0:01:22]} c4 {[%emt 0:00:05]} 19. Qxb4 {[%emt 0:01:30]} cxb3 {[%emt 0:00:15]} 20. c3 {[%emt 0:00:53]} d4 {[%emt 0:02:10]} 21. Qxb3 {[%emt 0:00:43]} dxc3 {[%emt 0:00:35]} 22. Nxf5 {[%emt 0:03:07]} Bxf5 {[%emt 0:06:39]} 23. Rxf5 {[%emt 0:00:06]} Qd4+ {[%emt 0:04:26]} 24. Kh1 {[%emt 0:00:35]} Raf8 {[%emt 0:00:19]} 25. bxc3 {[%emt 0:06:24]} Qxd3 {[%emt 0:02:24]} 26. Rxf7 {[%emt 0:02:04]} Rxf7 {[%emt 0:00:06]} 27. Ba3 {[%emt 0:02:22]} Qf3+ {[%emt 0:00:07]} 0-1

[Event "WSTCC-65 2024"]
[Site "Krakow"]
[Date "2024.07.04"]
[Round "3.9"]
[White "Roos, Daniel"]
[Black "Binham, Timothy F."]
[Result "1-0"]
[ECO "A04"]
[WhiteElo "2307"]
[BlackElo "2276"]
[Annotator "TA"]
[PlyCount "87"]
[EventDate "2024.07.01"]
[EventType "team-tourn"]
[EventCountry "POL"]
[SourceTitle "playchess.com"]
[Source "ChessBase"]
[SourceQuality "1"]
[TimeControl "40/5400+30:1800+30"]

{[%evp 15,87,-9,0,0,-10,-15,6,7,13,4,26,11,29,-3,66,95,79,76,104,111,100,112,92,38,58,46,49,60,83,81,101,25,33,18,83,74,110,121,116,115,116,100,120,122,167,152,143,154,147,149,241,239,223,201,372,376,361,386,962,295,363,370,369,377,345,369,379,334,469,462,504,493,468,461]} 1. Nf3 {[%emt 0:00:17]} c5 {[%emt 0:00:42]} 2. g3 {[%emt 0:00:16]} Nc6 {[%emt 0:00:48]} 3. d4 {[%emt 0:02:28]} cxd4 {[%emt 0:00:13]} 4. Nxd4 {[%emt 0:00:06]} g6 {[%emt 0:01:10]} 5. Bg2 {[%emt 0:00:57]} Bg7 {[%emt 0:00:10]} 6. Nxc6 {[%emt 0:00:19]} bxc6 {[%emt 0:00:25]} 7. O-O {[%emt 0:00:21]} Rb8 {[%emt 0:03:05]} 8. Nd2 {[%emt 0:00:11]} Nf6 {[%emt 0:05:44]} 9. c4 {[%emt 0:04:22]} O-O {[%emt 0:12:34]} 10. Nb3 {[%emt 0:06:10]} d5 {[%emt 0:13:45]} 11. Bf4 {[%emt 0:13:32] The position is equal.} Rb4 {[%emt 0:03:50]} 12. cxd5 {[%emt 0:04:45]} Nxd5 {[%emt 0:07:11]} 13. Bd2 {[%emt 0:01:18][%cal Og2d5] [#] Hoping for Bxd5!} Rb5 {[%emt 0:01:00]} 14. Qc1 {[%emt 0:05:56]} Bd7 {[%emt 0:10:08]} ({Better is} 14... a5 $11) 15. Rd1 $14 {[%emt 0:04:31]} Qc8 {[%emt 0:03:12]} 16. Bh6 {[%emt 0:04:21]} Bg4 {[%emt 0:12:03]} 17. Bxg7 {[%emt 0:00:43]} Kxg7 {[%emt 0:00:01]} 18. Nd4 {[%emt 0:01:11]} Rb6 {[%emt 0:00:23]} 19. b3 {[%emt 0:01:28]} ({White should play} 19. a4 $16) 19... e5 {[%emt 0:01:43]} 20. Nf3 {[%emt 0:00:45]} Re8 {[%emt 0:03:01]} 21. Qb2 {[%emt 0:01:15]} f6 {[%emt 0:03:11]} 22. Rac1 {[%emt 0:01:03] [#] aiming for Rxd5.} Qe6 {[%emt 0:02:41]} 23. Rd2 {[%emt 0:09:21]} (23. Ne1 $16) 23... Bxf3 $11 {[%emt 0:03:37]} 24. exf3 {[%emt 0:01:53]} g5 {[%emt 0:00:48]} (24... Re7 $11 {keeps the balance.}) 25. Bf1 $16 {[%emt 0:02:27] Black is now going downhill.} Qf5 {[%emt 0:00:58]} 26. Qa3 {[%emt 0:03:53][%cal Od2d5] Rxd5! is the strong threat.} Qd7 {[%emt 0:00:44]} 27. Bc4 $36 {[%emt 0:01:52][%mdl 2048] White is in control.} Qe7 {[%emt 0:05:35]} 28. Qa5 {[%emt 0:02:04]} Rd8 {[%emt 0:01:44]} 29. Rcd1 {[%emt 0:01:39]} h5 {[%emt 0:03:02]} 30. Bxd5 {[%emt 0:01:07]} cxd5 {[%emt 0:00:45]} 31. Rxd5 {[%emt 0:00:11]} Rxd5 {[%emt 0:00:13]} 32. Qxd5 $18 {[%emt 0:00:36][%mdl 4096] Endgame. KQR-KQR} h4 {[%emt 0:00:21]} (32... Rb4 $16 33. Kg2 Rb7) 33. gxh4 {[%emt 0:01:02]} gxh4 {[%emt 0:00:03]} 34. Qd7 {[%emt 0:03:13]} Rb7 $2 {[%emt 0:00:03]} (34... Qxd7 {is a better defense.} 35. Rxd7+ Kg6) 35. Qg4+ {[%emt 0:01:59]} Kf8 {[%emt 0:01:08]} 36. Qxh4 {[%emt 0:00:45]} Qg7+ {[%emt 0:00:10]} (36... Qe6 37. Rd8+ Ke7) 37. Qg4 $2 {[%emt 0:02:02]} (37. Kh1) 37... f5 {[%emt 0:01:08]} 38. Rd8+ {[%emt 0:02:10]} Kf7 {[%emt 0:00:01]} 39. Qxg7+ {[%emt 0:00:10]} Kxg7 {[%emt 0:00:02]} 40. Rd6 {[%emt 0:00:26]} Kf7 {[%emt 0:01:13]} 41. Ra6 {[%emt 0:30:12]} Rd7 {[%emt 0:02:03]} (41... Kg8 $142 42. Ra5 Re7) 42. h4 {[%emt 0:00:00][%cal Bh2h4,Bh4h5][%mdl 32] White is clearly winning.} Re7 {[%emt 0:03:04]} 43. h5 {[%emt 0:00:00]} Kg7 {[%emt 0:00:37]} 44. Kg2 {[%emt 0:00:00] Weighted Error Value: White=0.24 (precise) /Black=0.34.  Mistake:       	White=3     	Black=6      Inaccurate:     	White=1     	Black=3      OK:         	White=17    	Black=7      Best:        	White=2     	Black=2} 1-0

[Event "WSTCC-65 2024"]
[Site "Krakow"]
[Date "2024.07.04"]
[Round "3.9"]
[White "Meulders, Richard"]
[Black "Varley, Peter"]
[Result "1/2-1/2"]
[ECO "A06"]
[WhiteElo "2154"]
[BlackElo "2140"]
[Annotator "RC"]
[PlyCount "77"]
[EventDate "2024.07.01"]
[EventType "team-tourn"]
[EventCountry "POL"]
[SourceTitle "playchess.com"]
[Source "ChessBase"]
[SourceQuality "1"]
[TimeControl "40/5400+30:1800+30"]

1. Nf3 {[%emt 0:00:06]} d5 {[%emt 0:00:06]} 2. b3 {[%emt 0:00:09]} Bg4 {[%emt 0:00:10]} 3. Bb2 {[%emt 0:00:36]} Nd7 {[%emt 0:00:23]} 4. g3 {[%emt 0:02:49]} Bxf3 {[%emt 0:03:03]} 5. exf3 {[%emt 0:00:05]} Ngf6 {[%emt 0:00:45]} 6. f4 {[%emt 0:08:15]} e6 {[%emt 0:02:39]} 7. Bg2 {[%emt 0:00:19]} Bd6 {[%emt 0:01:30]} 8. O-O {[%emt 0:00:47]} O-O {[%emt 0:01:12]} 9. a4 {[%emt 0:07:24]} a5 {[%emt 0:03:53]} 10. Ba3 {[%emt 0:14:02]} Qe7 {[%emt 0:01:12]} 11. Bxd6 {[%emt 0:00:15]} Qxd6 {[%emt 0:00:05]} 12. Nc3 {[%emt 0:01:13]} c6 {[%emt 0:00:51]} 13. d4 {[%emt 0:01:46]} Rfc8 {[%emt 0:06:40]} 14. Qd3 {[%emt 0:01:24]} g6 {[%emt 0:02:22]} 15. Rfc1 {[%emt 0:10:49]} Nh5 {[%emt 0:07:14]} 16. Bf3 {[%emt 0:01:52]} Ng7 {[%emt 0:03:46]} 17. Rd1 {[%emt 0:06:14]} f5 {[%emt 0:08:09]} 18. Ne2 {[%emt 0:01:58]} Nf6 {[%emt 0:00:54]} 19. c4 {[%emt 0:02:31]} Re8 {[%emt 0:06:27]} 20. c5 {[%emt 0:02:42]} Qc7 {[%emt 0:03:44]} 21. Rdc1 {[%emt 0:03:57]} Ra7 {[%emt 0:03:32]} 22. Nc3 {[%emt 0:01:06]} Ne4 {[%emt 0:05:35]} 23. Bd1 {[%emt 0:00:41]} Nxc3 {[%emt 0:02:10]} 24. Qxc3 {[%emt 0:01:15]} Re7 {[%emt 0:00:57]} 25. Kg2 {[%emt 0:00:24]} Ne8 {[%emt 0:01:46]} 26. Rab1 {[%emt 0:00:19]} Nf6 {[%emt 0:00:50]} 27. f3 {[%emt 0:00:11]} h5 {[%emt 0:00:26]} 28. h4 {[%emt 0:00:24]} Kf7 {[%emt 0:01:16]} 29. b4 {[%emt 0:00:38]} axb4 {[%emt 0:00:31]} 30. Qxb4 {[%emt 0:00:29]} Qa5 {[%emt 0:01:45]} 31. Qxa5 {[%emt 0:02:47]} Rxa5 {[%emt 0:00:06]} 32. Rb4 {[%emt 0:00:21]} Rc7 {[%emt 0:00:27]} 33. Rcb1 {[%emt 0:00:37]} Ra7 {[%emt 0:00:06]} 34. Kf2 {[%emt 0:02:08]} Ke8 {[%emt 0:03:52]} 35. Ke3 {[%emt 0:01:29]} Kd8 {[%emt 0:00:53]} 36. Bc2 {[%emt 0:01:09]} Kc8 {[%emt 0:00:34]} 37. Kd2 {[%emt 0:02:43]} Rh7 {[%emt 0:01:35]} 38. Re1 {[%emt 0:00:29]} Re7 {[%emt 0:00:40]} 39. Bd3 {[%emt 0:02:49]} 1/2-1/2

[Event "WSTCC-65 2024"]
[Site "Krakow"]
[Date "2024.07.04"]
[Round "3.9"]
[White "Rewitz, Jan"]
[Black "Kennedy, Shernaz"]
[Result "1-0"]
[ECO "A34"]
[WhiteElo "2089"]
[BlackElo "1784"]
[Annotator "NA RC"]
[PlyCount "117"]
[EventDate "2024.07.01"]
[EventType "team-tourn"]
[EventCountry "POL"]
[SourceTitle "playchess.com"]
[Source "ChessBase"]
[SourceQuality "1"]
[TimeControl "40/5400+30:1800+30"]

1. c4 {[%emt 0:00:04]} c5 {[%emt 0:00:27]} 2. Nc3 {[%emt 0:00:16]} b6 {[%emt 0:00:13]} 3. g3 {[%emt 0:06:06]} Bb7 {[%emt 0:00:13]} 4. e4 {[%emt 0:00:15]} Nf6 {[%emt 0:00:56]} 5. Bg2 {[%emt 0:00:22]} d6 {[%emt 0:00:44]} 6. Nge2 {[%emt 0:01:11]} e6 {[%emt 0:00:55]} 7. O-O {[%emt 0:00:53]} Be7 {[%emt 0:00:08]} 8. e5 {[%emt 0:04:47]} Bxg2 {[%emt 0:00:34]} 9. exf6 {[%emt 0:00:09]} Bxf1 {[%emt 0:00:43]} 10. fxe7 {[%emt 0:00:05]} Qxe7 {[%emt 0:01:24]} 11. Kxf1 {[%emt 0:00:26]} O-O {[%emt 0:00:50]} 12. d4 {[%emt 0:00:41]} cxd4 {[%emt 0:01:21]} 13. Nxd4 {[%emt 0:02:52]} Qc7 {[%emt 0:01:20]} 14. b3 {[%emt 0:18:10]} a6 {[%emt 0:03:32]} 15. Bb2 {[%emt 0:09:43]} Nd7 {[%emt 0:00:20]} 16. Qe2 {[%emt 0:08:55]} Rae8 {[%emt 0:05:04]} 17. Re1 {[%emt 0:04:49]} Qb7 {[%emt 0:01:10]} 18. Qf3 {[%emt 0:02:21]} Qxf3 {[%emt 0:03:29]} 19. Nxf3 {[%emt 0:00:11]} Nc5 {[%emt 0:00:21]} 20. Rd1 {[%emt 0:03:53]} Rd8 {[%emt 0:00:37]} 21. h4 {[%emt 0:09:16]} h6 {[%emt 0:00:18]} 22. Nd4 {[%emt 0:02:14]} Rfe8 {[%emt 0:01:48]} 23. Nc2 {[%emt 0:03:44]} f5 {[%emt 0:00:51]} 24. h5 {[%emt 0:02:45]} Kf7 {[%emt 0:00:13]} 25. b4 {[%emt 0:01:42]} Nb7 {[%emt 0:01:53]} 26. Ne3 {[%emt 0:03:14]} g6 {[%emt 0:02:08]} 27. hxg6+ {[%emt 0:00:20]} Kxg6 {[%emt 0:00:01]} 28. Na4 {[%emt 0:00:22]} b5 {[%emt 0:00:21]} 29. cxb5 {[%emt 0:00:07]} axb5 {[%emt 0:00:02]} 30. Nc3 {[%emt 0:00:18]} Ra8 {[%emt 0:02:52]} 31. a3 {[%emt 0:00:45]} d5 {[%emt 0:01:41]} 32. Nxb5 {[%emt 0:00:18]} Rac8 {[%emt 0:00:07]} 33. Be5 {[%emt 0:00:53]} h5 {[%emt 0:00:54]} 34. a4 {[%emt 0:00:26]} Red8 {[%emt 0:00:34]} 35. a5 {[%emt 0:01:17]} Rd7 {[%emt 0:00:09]} 36. a6 {[%emt 0:02:48]} Nd8 {[%emt 0:00:09]} 37. Nd6 {[%emt 0:05:30]} Rc6 {[%emt 0:03:32]} 38. b5 {[%emt 0:01:02]} Rb6 {[%emt 0:00:25]} 39. Ra1 {[%emt 0:01:03]} Nf7 {[%emt 0:06:52]} 40. Nxf7 {[%emt 0:00:36]} Rxf7 {[%emt 0:04:41]} 41. a7 {[%emt 0:30:34]} Rxa7 {[%emt 0:30:08]} 42. Rxa7 {[%emt 0:00:09]} Rxb5 {[%emt 0:00:06]} 43. Ng2 {[%emt 0:00:00]} d4 {[%emt 0:00:00]} 44. Nh4+ {[%emt 0:00:00]} Kg5 {[%emt 0:00:00]} 45. Rg7+ {[%emt 0:00:00]} Kh6 {[%emt 0:00:00]} 46. Rg6+ {[%emt 0:00:00]} Kh7 {[%emt 0:00:00]} 47. Rxe6 {[%emt 0:00:00]} d3 {[%emt 0:00:00]} 48. Bf4 {[%emt 0:00:00]} Rd5 {[%emt 0:00:00]} 49. Rd6 {[%emt 0:00:00]} Rxd6 {[%emt 0:00:00]} 50. Bxd6 {[%emt 0:00:00]} Kg7 {[%emt 0:00:00]} 51. Ke1 {[%emt 0:00:00]} Kf6 {[%emt 0:00:00]} 52. Kd2 {[%emt 0:00:00]} Kg5 {[%emt 0:00:00]} 53. Kxd3 {[%emt 0:00:00]} Kg4 {[%emt 0:00:00]} 54. Ke3 {[%emt 0:00:00]} f4+ {[%emt 0:00:00]} 55. Bxf4 {[%emt 0:00:05]} Kh3 {[%emt 0:00:00]} 56. Kf3 {[%emt 0:00:26]} Kh2 {[%emt 0:00:00]} 57. g4+ {[%emt 0:00:48]} Kh3 {[%emt 0:00:00]} 58. gxh5 {[%emt 0:00:14]} Kxh4 59. h6 1-0